[Event "Fall IM-D Norm Invitational 2022"]
[Site "Charlotte"]
[Date "2022.11.21"]
[Round "8"]
[White "Lee, Alice"]
[Black "Malicka, Maria"]
[Result "1/2-1/2"]
[ECO "E26"]
[WhiteElo "2284"]
[BlackElo "2275"]
[Annotator "TA"]
[PlyCount "51"]
[EventDate "2022.11.18"]
[EventType "tourn"]
[EventCountry "USA"]
[SourceTitle "playchess.com"]
[Source "ChessBase"]
[SourceQuality "1"]
[TimeControl "5400+30"]

{[%evp 20,51,37,0,33,24,32,32,34,22,42,35,35,26,28,27,37,19,27,20,24,18,19,14,19,19,22,28,32,24,28,28,28,0]} 1. d4 {[%emt 0:00:01]} Nf6 {[%emt 0:00:03]} 2. c4 {[%emt 0:00:05]} e6 {[%emt 0:00:03]} 3. Nc3 {[%emt 0:00:06]} Bb4 {[%emt 0:00:08]} 4. e3 {[%emt 0:00:06]} c5 {[%emt 0:00:51]} 5. a3 {[%emt 0:01:48]} Bxc3+ {[%emt 0:00:47]} 6. bxc3 {[%emt 0:00:03]} d6 {[%emt 0:01:07]} 7. Bd3 {[%emt 0:05:32]} Nc6 {[%emt 0:00:14]} 8. Ne2 {[%emt 0:01:15]} O-O {[%emt 0:01:16]} 9. O-O {[%emt 0:01:12]} e5 {[%emt 0:09:35]} 10. e4 {[%emt 0:00:30]} Re8 11. f3 {[#]} (11. d5 $5 {[%cal Rd5c6]} Ne7 12. Be3 $14) 11... Qc7 $146 {[%emt 0:09:42][%cal Re5d4] E29: Nimzo-Indian: Sämisch: 5...0-0 6 e3 c5 7 Bd3 Nc6.} ({Predecessor:} 11... h6 12. Be3 b6 13. Bf2 Nh7 14. f4 Na5 15. Bg3 Ba6 16. fxe5 dxe5 17. Bxe5 Bxc4 18. Bg3 Qd7 19. h3 Ng5 {0-1 (74) Ezat,M (2401)-Kuzubov,Y (2643) Chess.com INT 2020}) 12. Be3 {[%emt 0:18:45]} b6 {[%emt 0:04:20]} 13. d5 {[%emt 0:05:56]} Na5 {[%emt 0:01:05] White is slightly better.} 14. Ng3 {[%emt 0:04:02]} Ba6 {[%emt 0:01:15]} 15. Qe2 {[%emt 0:00:56]} Nd7 {[%emt 0:07:09]} 16. h4 {[%emt 0:04:58]} Nf8 {[%emt 0:01:43][%cal Bd7f8,Bf8h7,Bh7f6][%mdl 32]} 17. h5 {[%emt 0:01:23] Prevents Ng6.} h6 {[%emt 0:11:48]} 18. Nf5 {[%emt 0:01:02]} Bc8 {[%emt 0:00:20]} 19. Nh4 {[%emt 0:03:44]} Qe7 {[%emt 0:12:26]} 20. g3 {[%emt 0:02:00]} Nh7 {[%emt 0:00:51]} 21. Ng2 {[%emt 0:03:57]} Nf6 {[%emt 0:05:33]} 22. g4 {[%emt 0:00:45]} Nh7 {[%emt 0:00:09]} 23. Kh2 {[%emt 0:03:11]} Ng5 {[%emt 0:03:02]} 24. Kg3 {[%emt 0:02:24]} Qd7 {[%emt 0:05:44]} 25. Bxg5 {[%emt 0:06:58]} hxg5 {[%emt 0:00:06]} 26. a4 {[%emt 0:00:39] Weighted Error Value: White=0.05 (flawless) /Black=0.06 (flawless)} 1/2-1/2

[Event "Fall IM-D Norm Invitational 2022"]
[Site "Charlotte"]
[Date "2022.11.21"]
[Round "8"]
[White "Eidelman, Gabriel"]
[Black "Willy, Stephen"]
[Result "1-0"]
[ECO "D35"]
[WhiteElo "2197"]
[BlackElo "2159"]
[Annotator "TA"]
[PlyCount "81"]
[EventDate "2022.11.18"]
[EventType "tourn"]
[EventCountry "USA"]
[SourceTitle "playchess.com"]
[Source "ChessBase"]
[SourceQuality "1"]
[TimeControl "5400+30"]

{[%evp 12,81,37,22,95,108,89,92,116,123,142,106,108,88,114,119,126,124,138,147,240,136,142,111,89,90,225,64,133,126,203,91,75,71,277,289,275,255,258,260,261,191,184,155,172,173,164,81,72,81,172,14,18,12,12,0,0,0,0,-78,-77,-97,-105,-95,14,14,14,16,13,13,620,591]} 1. d4 {[%emt 0:00:09]} Nf6 {[%emt 0:01:07]} 2. c4 {[%emt 0:00:06]} e6 {[%emt 0:00:15]} 3. Nc3 {[%emt 0:00:08]} d5 {[%emt 0:00:25]} 4. cxd5 {[%emt 0:00:12]} exd5 {[%emt 0:00:09]} 5. Bg5 {[%emt 0:00:11]} c6 {[%emt 0:01:26]} 6. e3 {[%emt 0:00:12]} Qb6 {[%emt 0:00:09] 6...Bd6 is the recent fashion.} 7. Qd2 {[%emt 0:00:35] [#]} Bb4 $146 {[%emt 0:00:55] D35: Queen's Gambit Declined: Exchange Variation.} (7... Be7 $11 {keeps the balance.}) ({Predecessor:} 7... Ne4 8. Nxe4 dxe4 9. Ne2 Bb4 10. Nc3 Qa5 11. Bh4 Be6 12. a3 Nd7 13. Rc1 Bxc3 14. Qxc3 Qxc3+ 15. bxc3 {1-0 (35) Hammer,J (2632)-Ivanov,S (2539) Sweden 2018}) 8. Bxf6 $16 {[%emt 0:04:17]} gxf6 {[%emt 0:00:09]} 9. Bd3 {[%emt 0:05:46]} Rg8 {[%emt 0:02:27] White is better.} 10. Nge2 {[%emt 0:02:23]} h5 {[%emt 0:03:35]} 11. h4 {[%emt 0:15:32]} Bd6 {[%emt 0:02:14]} 12. e4 {[%emt 0:09:18]} dxe4 {[%emt 0:04:36]} 13. Nxe4 {[%emt 0:03:14]} Be7 {[%emt 0:00:17]} 14. Bc4 {[%emt 0:13:43]} Rg4 {[%emt 0:03:44]} 15. N4c3 {[%emt 0:06:36] White is more active. Pair of Knights!} Rxg2 {[%emt 0:04:58]} (15... Qb4 $16) 16. Ng3 {[%emt 0:02:30]} (16. Nf4 $18 Rg8 17. O-O-O) 16... Bg4 {[%emt 0:01:54]} 17. Bf1 {[%emt 0:04:14][%mdl 64] Trapped Piece} Rxg3 {[%emt 0:01:31]} 18. fxg3 {[%emt 0:00:03]} Bd6 {[%emt 0:12:21]} (18... Na6 $16) 19. Qf2 $2 {[%emt 0:09:50]} (19. Bh3 $18) 19... Nd7 {[%emt 0:12:59]} (19... Na6 $1 $14) 20. Bh3 $1 {[%emt 0:02:20]} Qc7 {[%emt 0:01:59]} (20... Bxh3 $16 21. Rxh3 O-O-O) 21. Ne4 {[%emt 0:00:02]} (21. Bxg4 $2 Bxg3 22. Bf3 (22. Bxd7+ $2 Kxd7 23. O-O Bxf2+ $19) 22... O-O-O $19) (21. Qe3+ $1 $18 Kf8 22. Qh6+ Kg8 23. Bxg4 Bxg3+ 24. Kd1 hxg4 25. Rg1) 21... Qa5+ {[%emt 0:06:23]} 22. Kf1 $1 {[%emt 0:01:50]} Qb5+ $2 {[%emt 0:00:25]} (22... Bxh3+ $16 {keeps fighting.} 23. Rxh3 (23. Kg1 Bc7 $11) 23... Be7) 23. Kg1 $18 {[%emt 0:00:57]} Be7 {[%emt 0:03:50]} 24. Bxg4 {[%emt 0:00:36]} hxg4 {[%emt 0:00:22]} 25. Nc3 {[%emt 0:01:19]} Qb6 {[%emt 0:02:37][%cal Od7e5]} 26. Re1 {[%emt 0:01:20] Prevents Ne5. Hoping for Qe3.} Ne5 27. Na4 {[%emt 0:05:55]} ({Worse is} 27. dxe5 Bc5 28. exf6+ Kf8 $17) 27... Qxd4 {[%emt 0:03:41]} 28. Qxd4 {[%emt 0:00:02]} Nf3+ {[%emt 0:00:16]} 29. Kf2 {[%emt 0:00:51]} (29. Kg2 $18 {is more deadly. Intending Qxf6 and mate.} Nxd4 30. Re4) 29... Nxd4 $16 {[%emt 0:00:10]} 30. Re4 {[%emt 0:00:33][%csl LRd4,LRg4]} Rd8 {[%emt 0:01:14]} (30... Ne6 $16) 31. Rhe1 $2 {[%emt 0:02:28]} ({Much less strong is} 31. Rxg4 Kf8 $16) ({Better is} 31. Rd1 $18 Ne6 32. Rxd8+ Bxd8 33. Rxg4) 31... Ne6 $11 {[%emt 0:00:29]} 32. Rxg4 {[%emt 0:00:25]} Kf8 {[%emt 0:00:12] Against Rg8+. aiming for ...b5.} 33. Rge4 {[%emt 0:00:53]} f5 {[%emt 0:01:05]} 34. R4e2 {[%emt 0:00:23]} f4 {[%emt 0:01:39][%cal Bf5f4,Bf4g3,Bg3g2][%mdl 32]} 35. Re4 {[%emt 0:05:05] [#]} (35. Rf1 $11) 35... Rd3 $1 $17 {[%emt 0:01:27]} 36. Rg1 {[%emt 0:03:37]} b5 {[%emt 0:00:47]} 37. Ke2 {[%emt 0:00:01] [#]} Rxg3 {[%emt 0:01:42]} ({Black should try} 37... Rd6 $1 $17 {And now ...f5 would win.} 38. Nc3 f5 39. Rxf4 (39. Re5 $2 Bf6 $17) 39... Nxf4+ 40. gxf4 Bxh4) 38. Rxg3 $11 {[%emt 0:00:04]} fxg3 {[%emt 0:00:13]} 39. Nc3 {[%emt 0:00:07]} g2 $1 {[%emt 0:00:43]} 40. Kf2 {[%emt 0:00:56][%mdl 1024] White has compensation.} Nd4 $2 {[%emt 0:06:26][%mdl 8192]} 41. Rxd4 {[%emt 0:00:59] Weighted Error Value: White=0.35/Black=0.53} 1-0

[Event "Fall IM-D Norm Invitational 2022"]
[Site "Charlotte"]
[Date "2022.11.21"]
[Round "8"]
[White "Amburgy, Ryan"]
[Black "Estrada Nieto, Julian"]
[Result "1-0"]
[ECO "A07"]
[WhiteElo "2175"]
[BlackElo "2241"]
[Annotator "TA"]
[PlyCount "83"]
[EventDate "2022.11.18"]
[EventType "tourn"]
[EventCountry "USA"]
[SourceTitle "playchess.com"]
[Source "ChessBase"]
[SourceQuality "1"]
[TimeControl "5400+30"]

{[%evp 9,83,21,64,66,63,55,77,82,88,89,98,57,97,95,91,90,105,92,95,97,114,107,110,80,110,75,79,77,105,81,79,65,55,48,47,58,64,66,126,62,80,68,66,0,0,0,0,0,0,0,0,0,0,-10,0,0,126,107,121,0,629,630,627,637,1262,1242,1190,1164,29986,29987,29991,29992,29995,29996,29998,29999]} 1. Nf3 {[%emt 0:00:02]} d5 {[%emt 0:00:27]} 2. g3 {[%emt 0:00:10]} Nf6 {[%emt 0:00:07]} 3. Bg2 {[%emt 0:00:05]} c6 {[%emt 0:00:33]} 4. O-O {[%emt 0:00:09]} Bg4 {[%emt 0:01:04]} 5. c4 {[%emt 0:00:10]} dxc4 {[%emt 0:02:27]} 6. Na3 {[%emt 0:00:35][%cal Bb1a3,Ba3c4,Bc4a5][%mdl 32] A11: English Opening: 1...c6.} Nbd7 {[%emt 0:18:59]} 7. Nxc4 {[%emt 0:00:20]} Bxf3 {[%emt 0:06:10]} 8. Bxf3 {[%emt 0:00:38] White is better.} e6 {[%emt 0:03:39]} 9. d4 {[%emt 0:06:42]} Be7 {[%emt 0:06:32]} 10. Qb3 {[%emt 0:09:56]} Nb6 {[%emt 0:02:34]} 11. Na5 {[%emt 0:00:26]} Qd7 {[%emt 0:00:52]} 12. Rd1 {[%emt 0:03:45]} O-O {[%emt 0:01:00]} 13. e4 {[%emt 0:00:28]} Rfd8 {[%emt 0:05:44]} 14. Be3 {[%emt 0:02:33]} Rab8 {[%emt 0:03:45]} 15. Bf4 {[%emt 0:14:58]} Rbc8 {[%emt 0:00:35] [#]} 16. a4 $146 {[%emt 0:01:27]} ({Predecessor:} 16. h4 h6 17. Kg2 Bf8 18. g4 Qe7 19. g5 Nh7 20. g6 Nf6 21. gxf7+ Qxf7 22. Bg3 Rd7 23. h5 {1-0 (54) Neiman,E (2292)-Daurelle,H (2217) Clichy 2002}) 16... h6 {[%emt 0:04:58]} 17. Qc2 {[%emt 0:03:57]} Bb4 {[%emt 0:14:09]} 18. Nb3 {[%emt 0:00:42]} a5 {[%emt 0:01:25]} 19. Bd2 {[%emt 0:09:01]} Qe7 {[%emt 0:03:37]} 20. Bc3 {[%emt 0:06:58]} Ra8 {[%emt 0:00:28]} 21. Be2 {[%emt 0:02:15]} Nbd7 {[%emt 0:02:48]} 22. f3 {[%emt 0:01:14]} h5 {[%emt 0:09:10][%cal Oh5h4]} 23. Qd2 {[%emt 0:01:12]} b6 {[%emt 0:03:23]} ({Black should try} 23... Bxc3 $14 24. bxc3 (24. Qxc3 h4 $14) 24... e5) 24. Qg5 {[%emt 0:01:31]} (24. Bxb4 $16 axb4 25. a5) 24... e5 {[%emt 0:03:06]} 25. Rac1 {[%emt 0:02:09][%cal Rd4e5]} Qe6 {[%emt 0:01:15]} 26. dxe5 {[%emt 0:01:04]} (26. Bxb4 $14 axb4 27. dxe5 Qxb3 28. exf6 Nxf6 29. Rxd8+ Rxd8 30. e5 (30. Rxc6 Qxb2 31. Kf2 b3 $17)) 26... Nh7 $1 $11 {[%emt 0:01:32]} 27. Qf5 {[%emt 0:00:53] Threatens to win with Qxe6.} Qxb3 {[%emt 0:01:52]} 28. Rxd7 {[%emt 0:01:20] And now Rc7 would win.} g6 {[%emt 0:00:15]} 29. Rxd8+ $1 $40 {[%emt 0:01:59][%mdl 128] White is up to no good.} Rxd8 {[%emt 0:00:01]} 30. Qf4 Bxc3 {[%emt 0:00:23]} 31. bxc3 Qb2 {[%emt 0:00:43]} 32. Bc4 {[%emt 0:00:32]} Rf8 {[%emt 0:00:21] [#]} (32... Kh8 $1 $11 33. e6 (33. Bxf7 $2 Rd2 $19) 33... Rd2) 33. Qh6 $1 $16 {[%emt 0:02:45] Chess con chili.} Qa3 {[%emt 0:01:30] [#] Strongly threatening ...Qc5+.} 34. Rd1 {[%emt 0:01:39] White has more active pieces. The black rooks are badly placed.} ({Don't go for} 34. Qxg6+ $2 Kh8 35. Qh6 Qc5+ 36. Kh1 Qxc4 37. Qxh5 Qxa4 $19) (34. Kf1 $1 $16) 34... b5 $2 {[%emt 0:00:50][%mdl 8192]} (34... Qxa4 $11 35. Bxf7+ (35. Qxg6+ $2 Kh8 $19) 35... Rxf7 36. Qxg6+ Rg7 37. Rd8+ Nf8 38. Qe6+ Rf7 39. Qg6+ Rg7) 35. Qxg6+ $1 $18 {[%emt 0:01:25]} Kh8 {[%emt 0:00:01]} 36. Bxf7 {[%emt 0:00:01]} Qxc3 {[%emt 0:00:37]} 37. Qxh5 {[%emt 0:01:05] aiming for e6.} Qe3+ {[%emt 0:00:26]} 38. Kf1 {[%emt 0:00:01][%cal Bg1f1,Bf1g2,Bg2h3][%mdl 32] Hoping for e6.} Kg7 {[%emt 0:01:16]} 39. Rd7 {[%emt 0:00:21] White mates.} Qc1+ {[%emt 0:00:46]} 40. Kg2 {[%emt 0:00:03]} Qb2+ {[%emt 0:00:32]} 41. Kh3 {[%emt 0:00:09]} Rh8 {[%emt 0:00:36]} 42. Be6+ {[%emt 0:00:09] Weighted Error Value: White=0.13 (very precise) /Black=0.38} 1-0

[Event "Fall IM-D Norm Invitational 2022"]
[Site "Charlotte"]
[Date "2022.11.21"]
[Round "8"]
[White "De La Colina, Nicolas"]
[Black "Liu, Eric"]
[Result "1-0"]
[ECO "B51"]
[WhiteElo "2123"]
[BlackElo "2182"]
[Annotator "TA"]
[PlyCount "201"]
[EventDate "2022.11.18"]
[EventType "tourn"]
[EventCountry "USA"]
[SourceTitle "playchess.com"]
[Source "ChessBase"]
[SourceQuality "1"]
[TimeControl "5400+30"]

{[%evp 11,201,17,6,13,12,17,11,4,15,11,13,2,9,-4,18,0,18,16,33,10,18,5,144,143,402,402,391,212,218,217,207,197,208,176,224,192,254,249,248,248,244,252,285,261,284,247,285,291,295,298,312,324,333,315,325,310,302,268,311,307,370,335,449,421,422,402,372,373,515,388,444,433,431,418,401,388,465,454,533,496,530,520,607,595,568,539,532,523,435,424,462,461,475,424,556,535,438,0,421,412,475,475,501,482,483,489,568,470,571,581,552,460,570,567,663,594,543,506,698,681,689,700,694,685,624,602,718,675,678,662,675,671,668,670,638,625,780,772,795,735,712,0,566,412,516,464,437,384,428,406,558,568,571,538,948,947,2005,1882,2437,2034,5677,3345,5744,5098,12832,12822,6119,10275,5601,2246,1800,2235,12839,12838,12837,2108,1987,1731,12838,12838,12843,12843,12847,12847,12848,12848,12850,12849,12850,12849,12850,12849]} 1. e4 {[%emt 0:00:29]} c5 {[%emt 0:00:12]} 2. Nf3 {[%emt 0:00:24]} d6 {[%emt 0:00:13]} 3. Bb5+ {[%emt 0:00:35]} Nd7 {[%emt 0:00:13]} 4. d4 {[%emt 0:00:15]} cxd4 {[%emt 0:00:28]} 5. Qxd4 {[%emt 0:00:26]} a6 {[%emt 0:00:11]} 6. Bxd7+ {[%emt 0:00:07]} Bxd7 {[%emt 0:00:09]} 7. c4 {[%emt 0:00:05] B51: Sicilian: Moscow Variation (3 Bb5+) without 3...Bd7.} Nf6 {[%emt 0:02:04]} 8. Bg5 {[%emt 0:03:18]} e6 {[%emt 0:03:07]} 9. Nc3 {[%emt 0:01:55] The position is equal.} Bc6 {[%emt 0:03:31]} 10. O-O {[%emt 0:05:31]} Be7 {[%emt 0:01:20]} 11. Rfe1 {[%emt 0:07:17]} O-O {[%emt 0:11:53]} 12. Rad1 {[%emt 0:03:22]} Qa5 {[%emt 0:05:34] [#]} 13. Bd2 $146 {[%emt 0:09:13][%cal Oc3d5]} ({Predecessor:} 13. Qd2 Qc7 14. Nd4 Rfe8 15. Re3 Bd7 16. b3 Qc5 17. Nf3 Bc6 18. Bxf6 Bxf6 19. Qxd6 Qxd6 20. Rxd6 {1-0 (30) Bocharov,I (2511)-Smirnov,P (2585) Astana 2017}) 13... Qc7 {[%emt 0:02:50]} 14. Rc1 {[%emt 0:02:19][%cal Oc3d5]} Qb8 {[%emt 0:14:16]} 15. Bg5 {[%emt 0:06:31][%cal Oc3d5]} (15. Nd5 $5 {[%cal Rd5e7]} Bd8 16. Nb4 $14) 15... Qa7 {[%emt 0:16:48]} 16. Bxf6 {[%emt 0:05:19]} gxf6 {[%emt 0:01:31] [#] Black is now going downhill.} (16... Bxf6 $11 17. Qxd6 Rad8) 17. Nd5 $1 $16 {[%emt 0:02:42][%mdl 512] White has more active pieces.} Bd8 {[%emt 0:11:20][%mdl 8192]} (17... exd5 $16 18. exd5 Qxd4 19. Nxd4 Bxd5) (17... Bxd5 18. exd5) 18. Nxf6+ $18 {[%emt 0:01:22] Pair of Knights!} Kh8 {[%emt 0:00:49] And now ...Qxd4 would win.} 19. Qc3 {[%emt 0:03:32]} (19. Qxd6 $2 {is the wrong capture.} Bxf6 20. b3 Qb8 $19) (19. c5 $142) 19... e5 {[%emt 0:02:00]} 20. Nd5 {[%emt 0:04:12]} Bxd5 {[%emt 0:05:14]} 21. cxd5 {[%emt 0:00:19]} Rg8 {[%emt 0:03:54]} 22. Qc2 {[%emt 0:02:42]} Rg4 {[%emt 0:02:57]} (22... Qb6 {was called for.} 23. Re3 Qb5) 23. Qe2 {[%emt 0:01:46][%cal Of3e5]} Rf4 {[%emt 0:03:26]} (23... Rg6 $142 24. a3 Qb6) 24. g3 {[%emt 0:02:50]} Rf6 {[%emt 0:00:24]} 25. Rc2 {[%emt 0:01:35]} Bb6 {[%emt 0:01:52]} 26. Kg2 {[%emt 0:01:13]} Rg8 {[%emt 0:00:11]} 27. Rf1 {[%emt 0:01:41]} Rh6 {[%emt 0:03:12]} 28. Kh1 {[%emt 0:04:12]} Bd8 {[%emt 0:01:14]} 29. Rfc1 {[%emt 0:01:25]} Rhg6 {[%emt 0:02:25]} 30. Rc8 {[%emt 0:04:07]} R6g7 {[%emt 0:01:00]} 31. Kg2 {[%emt 0:02:00]} Rg6 {[%emt 0:00:30]} 32. R1c3 {[%emt 0:01:28]} R6g7 {[%emt 0:00:42]} 33. Qe3 {[%emt 0:01:03]} Qxe3 34. Rxe3 {[%emt 0:00:09]} Ba5 {[%emt 0:01:12]} 35. Rxg8+ {[%emt 0:01:04]} Rxg8 {[%emt 0:00:02][%mdl 4096] Endgame KRB-KRN} 36. Ra3 {[%emt 0:00:15]} b6 {[%emt 0:00:47]} 37. Nh4 {[%emt 0:03:59]} Ra8 {[%emt 0:00:51]} 38. Rb3 {[%emt 0:00:56] Prevents Bb4.} Kg8 {[%emt 0:00:33]} 39. Nf5 {[%emt 0:00:31]} Rd8 {[%emt 0:00:07]} 40. Rf3 {[%emt 0:00:53]} Kf8 {[%emt 0:00:09]} 41. a3 {[%emt 0:00:26] [#] Against Bb4. b4 is the strong threat.} Bd2 {[%emt 0:00:44]} 42. Kf1 {[%emt 0:01:07]} b5 {[%emt 0:00:50]} 43. Ke2 {[%emt 0:02:07]} Ba5 {[%emt 0:00:13]} 44. b4 {[%emt 0:00:11]} Bc7 {[%emt 0:00:04]} 45. Rc3 {[%emt 0:00:08]} Rd7 {[%emt 0:00:04]} 46. Rc6 {[%emt 0:00:28]} Ke8 {[%emt 0:00:45]} 47. Rxa6 {[%emt 0:00:22]} Rd8 {[%emt 0:00:08]} 48. Rc6 {[%emt 0:01:42]} Kd7 {[%emt 0:00:08]} 49. Kf3 {[%emt 0:00:21]} Ra8 {[%emt 0:00:09]} 50. Rc3 {[%emt 0:00:04]} Bb6 {[%emt 0:00:08]} 51. Kg2 {[%emt 0:01:18]} Rb8 {[%emt 0:01:27]} 52. f3 {[%emt 0:00:20]} Bc7 {[%emt 0:00:08]} 53. Kh3 {[%emt 0:00:12]} Rg8 {[%emt 0:00:22]} 54. Kg2 $2 {[%emt 0:03:25]} (54. Kh4 $18) 54... Ra8 $2 {[%emt 0:00:39][%mdl 8192]} (54... Rb8 $1 $11 {and Black has nothing to worry.} 55. Kh3 Rc8) 55. Kf1 {[%emt 0:00:06]} Ra6 {[%emt 0:00:48]} 56. Ke2 {[%emt 0:00:18]} Bb8 {[%emt 0:00:27]} 57. Kd3 {[%emt 0:00:26]} Ba7 {[%emt 0:00:21]} 58. Kc2 {[%emt 0:00:18]} Bg1 {[%emt 0:00:15]} 59. h3 {[%emt 0:00:13]} Bf2 {[%emt 0:00:51]} 60. Kb3 {[%emt 0:00:20]} Ba7 {[%emt 0:00:33]} 61. Rc2 {[%emt 0:01:38]} Bb8 {[%emt 0:00:22]} 62. Nh6 {[%emt 0:00:23]} Ba7 {[%emt 0:01:56]} 63. Re2 {[%emt 0:04:15]} Ke7 {[%emt 0:00:32]} 64. f4 {[%emt 0:00:21]} f6 {[%emt 0:00:23]} 65. Rc2 {[%emt 0:00:36]} Kd7 {[%emt 0:00:54]} 66. Ng4 {[%emt 0:00:51] Prevents Be3.} exf4 {[%emt 0:00:08]} 67. gxf4 {[%emt 0:00:07]} Bd4 {[%emt 0:00:04]} 68. Rd2 {[%emt 0:00:21]} Bg1 {[%emt 0:00:15]} 69. Nxf6+ {[%emt 0:00:11]} Ke7 {[%emt 0:00:04]} 70. Nxh7 {[%emt 0:01:58]} Be3 {[%emt 0:00:05]} 71. Rg2 {[%emt 0:00:08]} Bxf4 {[%emt 0:00:12]} 72. Rg7+ {[%emt 0:00:19]} Ke8 {[%emt 0:00:36]} 73. Nf6+ {[%emt 0:00:56]} Kd8 {[%emt 0:00:42]} 74. h4 {[%emt 0:03:18]} Bc1 {[%emt 0:00:26]} 75. Kc2 {[%emt 0:00:53]} Bf4 {[%emt 0:00:31]} 76. Kb3 {[%emt 0:01:14]} Bc1 $1 {[%emt 0:00:05]} 77. Rb7 {[%emt 0:01:45]} Rxa3+ {[%emt 0:00:22]} 78. Kc2 {[%emt 0:00:05]} Bf4 {[%emt 0:00:08]} 79. Rxb5 {[%emt 0:00:30]} Rh3 {[%emt 0:00:19]} 80. h5 {[%emt 0:00:58]} Bg5 {[%emt 0:00:53]} 81. Rb8+ {[%emt 0:00:19] White is clearly winning.} Ke7 {[%emt 0:00:07]} 82. Ng8+ {[%emt 0:00:10]} Kf7 {[%emt 0:00:12]} 83. h6 {[%emt 0:00:13]} Be3 {[%emt 0:01:17]} 84. b5 {[%emt 0:00:53]} Bd4 {[%emt 0:00:46]} 85. b6 {[%emt 0:00:22]} Rc3+ {[%emt 0:00:10]} 86. Kd2 {[%emt 0:00:29]} Rb3 {[%emt 0:00:16]} 87. h7 {[%emt 0:00:18] Hoping for b7.} Kg6 {[%emt 0:00:24]} 88. h8=Q {[%emt 0:01:03]} Bxh8 {[%emt 0:00:08]} 89. Ne7+ {[%emt 0:00:03]} Kh7 {[%emt 0:00:15]} 90. Nc6 {[%emt 0:01:03]} (90. b7 $142 Rb5 91. Nc6) 90... Bf6 {[%emt 0:01:28]} 91. b7 {[%emt 0:00:47] Threatens to win with Na5.} Bg5+ {[%emt 0:00:42]} 92. Kc2 {[%emt 0:00:20]} Rb5 {[%emt 0:00:14]} 93. Kd3 {[%emt 0:00:33]} (93. Nd8 $142 Bxd8 94. Rxd8 Rxb7 95. Rxd6) 93... Rb3+ {[%emt 0:00:23]} 94. Kc4 {[%emt 0:00:27]} Rb6 {[%emt 0:00:31]} 95. Na5 {[%emt 0:00:42]} Bd2 {[%emt 0:00:15]} 96. Ra8 {[%emt 0:00:20]} Bxa5 {[%emt 0:00:10]} 97. b8=Q {[%emt 0:00:07]} Rxb8 {[%emt 0:00:03]} 98. Rxb8 {[%emt 0:00:13]} Be1 {[%emt 0:00:15]} 99. Kb5 {[%emt 0:00:08]} Kg7 {[%emt 0:00:10]} 100. Kc6 {[%emt 0:00:10]} Kf6 {[%emt 0:00:25]} 101. Re8 {[%emt 0:00:12] Weighted Error Value: White=0.24 (precise) /Black=0.42} ({Weaker is} 101. Kxd6 Bg3+ 102. Kd7 Bxb8 $11) 1-0